bitfinex/quotes_SOLUSD_20240708
["timestamp","ask_amount","ask_price","bid_price","bid_amount"]
[1720454623158,7.4142,138.04,137.97,100.0]
[1720454623356,20.0,138.03,137.97,100.0]
[1720454623748,27.2448,138.03,137.97,100.0]
[1720454623975,20.0,138.03,137.97,100.0]
[1720454624170,7.2455,138.02,137.95,121.79]
[1720454624348,21.96871391,138.04,137.95,121.79]
[1720454624349,20.0,138.01,137.97,100.0]
[1720454624660,29.21301391,138.04,137.97,100.0]
[1720454624865,29.21301391,138.04,137.95,121.79]
[1720454624866,7.245,138.03,137.95,221.79]
[1720454625070,20.0,138.02,137.97,100.0]
[1720454625271,7.2449,138.03,137.97,100.0]
[1720454625573,20.0,138.02,137.97,100.0]
[1720454625753,29.04401391,138.02,137.97,100.0]
[1720454625948,29.04401391,138.02,137.94,37.2914]
[1720454625949,1.79871391,138.01,137.94,15.1614]
[1720454626165,0.17,138.0,137.94,15.1614]
[1720454626370,7.2477,137.98,137.94,15.1614]
[1720454626575,0.17,138.0,137.94,15.1614]
[1720454626873,0.17,138.0,137.93,6.0931]
[1720454626874,1.96871391,137.99,137.93,6.0931]
[1720454627070,1.96871391,137.98,137.9,16.1913]
[1720454627374,7.2486,137.96,137.9,16.1913]
[1720454627552,21.96871391,137.98,137.9,16.1913]
[1720454627553,20.0,137.95,137.9,16.1913]
[1720454627960,27.54684328,137.95,137.9,16.1913]
[1720454628162,20.0,137.95,137.92,100.0]
[1720454628359,7.54593021,137.99,137.92,100.0]
[1720454628678,20.0,137.98,137.94,100.0]
[1720454628850,9.04491391,138.01,137.94,100.0]
[1720454629050,9.34361218,138.0,137.92,121.79]
[1720454629269,7.54489827,138.0,137.94,100.0]
[1720454629481,16.59001218,138.0,137.92,121.79]
[1720454629652,7.2483,137.97,137.9,216.1913]
[1720454629848,1.79871391,137.96,137.9,116.1913]
[1720454630158,0.17,137.97,137.9,16.1913]
[1720454630768,7.2495,137.94,137.9,16.1913]
[1720454630946,20.0,137.93,137.9,16.1913]
[1720454631353,20.0,137.93,137.9,116.1913]
[1720454631575,7.2485,137.96,137.9,116.1913]
[1720454631778,20.0,137.95,137.9,116.1913]
[1720454631976,27.249,137.95,137.9,16.1913]
[1720454632967,20.0,137.95,137.9,116.1913]
[1720454633162,7.2497,137.94,137.9,116.1913]
[1720454633358,20.0,137.93,137.9,16.1913]
[1720454633582,27.2491,137.95,137.9,16.1913]
[1720454633875,20.0,137.95,137.9,116.1913]
[1720454634077,21.79871391,137.96,137.9,116.1913]
[1720454634254,20.0,137.96,137.9,116.1913]
[1720454634457,27.2485,137.96,137.9,116.1913]
[1720454634675,20.0,137.96,137.9,116.1913]
[1720454634864,1.79871391,137.98,137.9,116.1913]
[1720454635062,46.43129827,138.0,137.94,100.0]
[1720454635266,7.54489827,138.0,137.96,100.0]
[1720454635589,14.79159827,138.0,137.94,100.0]
[1720454636090,7.54489827,138.0,137.96,100.0]
[1720454636469,7.54489827,138.0,137.98,100.0]
[1720454636668,7.2448,138.03,137.98,100.0]
[1720454636980,7.53808562,138.02,137.98,100.0]
[1720454637881,7.53808562,138.02,137.98,144.3762]
[1720454638263,1.79871391,138.07,138.0,100.0]
[1720454638463,14.77971997,138.06,138.0,100.0]
[1720454638981,14.77991997,138.06,138.0,100.0]
[1720454639187,7.53641997,138.06,138.0,100.0]
[1720454639355,7.53641997,138.06,138.01,7.2454]
[1720454639559,7.53641997,138.06,138.03,100.0]
[1720454639882,7.2417,138.09,138.03,100.0]
[1720454640053,7.53466959,138.09,138.03,100.0]
[1720454640259,7.2422,138.08,138.03,100.0]
[1720454640562,7.53466959,138.09,138.03,100.0]
[1720454640752,7.53466959,138.09,138.05,100.0]
[1720454640959,7.2409,138.11,138.05,100.0]
[1720454641286,7.53381091,138.1,138.05,100.0]
[1720454641478,7.53381091,138.1,138.06,16.646]
[1720454641655,7.53381091,138.1,138.07,100.0]
[1720454641856,1.79871391,138.15,138.09,100.0]
[1720454642088,7.5327173,138.12,138.09,100.0]
[1720454642387,49.7306,138.2,138.11,100.0]
[1720454642388,1.79871391,138.19,138.11,100.0]
[1720454642692,14.77028091,138.17,138.11,100.0]
[1720454642903,7.53238091,138.17,138.13,121.79]
[1720454643064,1.79871391,138.23,138.15,100.0]
[1720454643262,7.2349,138.22,138.18,100.0]
[1720454643471,7.53022127,138.21,138.2,100.0]
[1720454643668,7.233,138.26,138.2,100.0]
[1720454643972,7.2323,138.27,138.22,100.0]
[1720454644163,7.2323,138.27,138.2,100.0]
[1720454644164,1.79871391,138.27,138.2,100.0]
[1720454644366,7.2328,138.26,138.2,100.0]
[1720454644566,7.2333,138.25,138.2,100.0]
[1720454644778,1.79871391,138.27,138.2,100.0]
[1720454644952,1.79871391,138.27,138.18,100.0]
[1720454644953,7.2341,138.24,138.18,100.0]
[1720454645171,21.79871391,138.23,138.15,144.0234]
[1720454645374,0.17,138.21,138.15,22.2334]
[1720454645675,1.79871391,138.21,138.15,22.2334]
[1720454645880,0.34,138.22,138.15,22.2334]
[1720454645881,1.96871391,138.2,138.15,22.2334]
[1720454646066,0.17,138.2,138.15,22.2334]
[1720454646263,0.34,138.21,138.15,22.2334]
[1720454646469,0.17,138.21,138.15,22.2334]
[1720454646680,7.2363,138.2,138.15,22.2334]
[1720454646878,20.0,138.19,138.15,22.2334]
[1720454647087,0.36868686,138.24,138.18,100.0]
[1720454647459,1.79871391,138.24,138.16,100.0]
[1720454647663,1.79871391,138.23,138.16,100.0]
[1720454647973,7.2339,138.24,138.16,100.0]
[1720454648353,9.40408585,138.25,138.18,100.0]
[1720454648557,9.03261391,138.24,138.16,121.79]
[1720454648758,1.79871391,138.23,138.16,121.79]
[1720454648960,1.79871391,138.22,138.15,22.2334]
[1720454649170,0.34,138.21,138.15,22.2334]
[1720454649368,7.4058,138.21,138.15,22.2334]
[1720454649576,20.0,138.2,138.16,100.0]
[1720454649764,0.7407588,138.25,138.2,100.0]
[1720454649979,7.2327,138.26,138.2,100.0]
[1720454650173,7.53059482,138.28,138.18,100.0]
[1720454650361,7.53059482,138.28,138.17,0.17]
[1720454650362,1.79871391,138.27,138.2,100.0]
[1720454650569,1.79871391,138.26,138.18,100.0]
[1720454650762,1.79871391,138.26,138.19,30.0]
[1720454651164,0.17,138.25,138.19,30.0]
[1720454651357,0.17,138.25,138.15,22.2334]
[1720454651358,0.17,138.22,138.15,15.7966]
[1720454651563,7.2371,138.18,138.12,100.0]
[1720454651764,20.0,138.17,138.14,100.0]
[1720454652202,20.0,138.17,138.16,100.0]
[1720454652385,20.0,138.21,138.16,100.0]
[1720454652698,20.0,138.21,138.15,130.0]
[1720454652699,20.0,138.23,138.17,100.0]
[1720454652879,20.0,138.24,138.17,100.0]
[1720454653273,27.2338,138.24,138.17,100.0]
[1720454653889,7.2348,138.22,138.15,130.0]
[1720454654093,1.79871391,138.23,138.15,130.0]
[1720454654094,20.0,138.21,138.15,130.0]
[1720454654406,1.96871391,138.2,138.13,100.0]
[1720454654702,21.96871391,138.22,138.15,100.0]
[1720454654907,20.0,138.22,138.17,100.0]
[1720454655269,20.0,138.22,138.19,100.0]
[1720454655579,20.0,138.22,138.17,100.0]
[1720454655774,7.2359,138.2,138.14,30.0]
[1720454655969,20.0,138.19,138.14,30.0]
[1720454656175,7.2378,138.17,138.14,30.0]
[1720454656398,20.0,138.16,138.14,30.0]
[1720454656571,20.0,138.16,138.13,100.0]
[1720454657093,20.0,138.22,138.15,100.0]
[1720454657464,21.79871391,138.22,138.15,100.0]
[1720454657664,29.03391391,138.22,138.15,100.0]
[1720454657869,21.79871391,138.22,138.14,30.0]
[1720454658097,21.79871391,138.22,138.16,100.0]
[1720454658307,20.0,138.22,138.16,100.0]
[1720454658768,20.0,138.22,138.14,100.0]
[1720454658965,7.236,138.2,138.14,100.0]
[1720454659204,20.0,138.19,138.14,100.0]
[1720454659700,20.0,138.21,138.16,100.0]
[1720454659888,29.03351391,138.22,138.16,100.0]
[1720454660396,7.2355,138.21,138.14,100.0]
[1720454660589,20.0,138.2,138.14,121.79]
[1720454660902,20.0,138.22,138.16,100.0]
[1720454661098,7.53551576,138.23,138.18,100.0]
[1720454661399,7.2332,138.25,138.18,100.0]
[1720454661597,7.2338,138.24,138.18,100.0]
[1720454661780,7.53626758,138.24,138.18,100.0]
[1720454662194,7.53626758,138.24,138.16,21.79]
[1720454662195,7.53626758,138.24,138.21,100.0]
[1720454662571,7.53626758,138.24,138.2,6.395]
[1720454662772,7.2335,138.25,138.2,6.395]
[1720454663186,14.77167485,138.25,138.2,6.395]
[1720454663387,7.2329,138.26,138.2,6.395]
[1720454663604,1.79871391,138.25,138.19,15.8361]
[1720454663900,7.2349,138.22,138.19,15.8361]
[1720454664206,20.0,138.21,138.19,115.8361]
[1720454664409,20.0,138.24,138.19,115.8361]
[1720454664577,21.79871391,138.25,138.19,115.8361]
[1720454664979,20.0,138.25,138.19,115.8361]
[1720454665591,7.53813458,138.26,138.21,100.0]
[1720454666099,7.53813458,138.26,138.19,115.8361]
[1720454666100,7.2327,138.26,138.19,115.8361]
[1720454666403,7.2338,138.24,138.19,115.8361]
[1720454666577,1.79871391,138.26,138.19,115.8361]
[1720454667014,29.03191391,138.26,138.19,115.8361]
[1720454667201,20.0,138.26,138.21,100.0]
[1720454668296,20.0,138.26,138.23,100.0]
[1720454668607,20.0,138.26,138.21,21.79]
[1720454668608,20.0,138.26,138.21,100.0]
[1720454668836,7.2322,138.27,138.21,100.0]
[1720454669103,20.0,138.26,138.21,100.0]
[1720454669305,20.0,138.26,138.23,100.0]
[1720454669687,20.0,138.28,138.23,100.0]
[1720454671279,27.2317,138.28,138.23,100.0]
[1720454671480,7.2324,138.27,138.23,100.0]
[1720454671681,20.0,138.26,138.23,100.0]
[1720454672005,7.53785918,138.29,138.25,100.0]
[1720454672308,1.79871391,138.31,138.25,100.0]
[1720454672507,7.2306,138.3,138.25,100.0]
[1720454672721,1.79871391,138.29,138.23,106.2785]
[1720454672923,7.2326,138.27,138.23,106.2785]
[1720454673132,7.2319,138.28,138.23,106.2785]
[1720454673424,14.76733264,138.31,138.25,100.0]
[1720454673797,9.02951391,138.3,138.25,100.0]
[1720454674107,20.0,138.29,138.25,100.0]
[1720454675021,7.53713264,138.31,138.28,100.0]
[1720454675221,0.04299775,138.36,138.3,100.0]
[1720454675427,7.57969667,138.36,138.3,100.0]
[1720454675606,14.80719667,138.36,138.31,6.0995]
[1720454675818,0.04299775,138.36,138.31,6.0995]
[1720454676405,0.04299775,138.36,138.32,100.0]
[1720454676714,0.04299775,138.36,138.34,100.0]
[1720454677399,0.04299775,138.36,138.33,16.1924]
[1720454678025,0.04299775,138.36,138.34,100.0]
[1720454678709,0.04299775,138.36,138.34,121.79]
[1720454679105,7.53605804,138.41,138.38,100.0]
[1720454679400,9.02171391,138.45,138.39,6.5257]
[1720454679614,7.223,138.45,138.39,6.5257]
[1720454679927,7.2233,138.44,138.39,6.5257]
[1720454680306,1.79871391,138.47,138.4,100.0]
[1720454680520,1.79871391,138.47,138.39,6.5257]
[1720454680728,7.53355114,138.48,138.43,100.0]
[1720454681235,7.53355114,138.48,138.41,115.7222]
[1720454681236,7.2212,138.48,138.41,115.7222]
[1720454681441,7.2218,138.47,138.41,137.5122]
[1720454681606,9.33205733,138.5,138.41,137.5122]
[1720454681806,7.2214,138.48,138.41,137.5122]
[1720454682029,7.2208,138.49,138.43,100.0]
[1720454682202,7.2208,138.49,138.41,37.5122]
[1720454682203,1.79871391,138.48,138.41,115.7222]
[1720454682411,1.79871391,138.48,138.41,15.7222]
[1720454682412,7.2218,138.47,138.41,15.7222]
[1720454682722,7.2218,138.47,138.41,115.7222]
[1720454682922,9.02011391,138.48,138.41,115.7222]
[1720454683132,7.2218,138.47,138.41,15.7222]
[1720454683306,7.2244,138.42,138.37,115.3678]
[1720454683515,20.0,138.41,138.37,15.3678]
[1720454683715,27.225,138.41,138.37,15.3678]
[1720454683912,20.0,138.41,138.37,15.3678]
[1720454684136,20.0,138.42,138.37,115.3678]
[1720454684302,20.0,138.43,138.37,137.1578]
[1720454684503,0.34,138.46,138.37,137.1578]
[1720454684727,0.17,138.46,138.37,137.1578]
[1720454684935,7.223,138.45,138.37,137.1578]
[1720454685119,9.33205733,138.5,138.43,100.0]
[1720454685433,7.53334342,138.5,138.43,100.0]
[1720454685649,9.01951391,138.49,138.43,100.0]
[1720454686433,7.53334342,138.5,138.39,100.0]
[1720454686434,7.2223,138.46,138.39,100.0]
[1720454686606,19.85211391,138.48,138.39,100.0]
[1720454686802,20.0,138.47,138.39,100.0]
[1720454687002,7.2245,138.42,138.37,115.3678]
[1720454687232,20.0,138.41,138.37,115.3678]
[1720454687415,20.0,138.41,138.39,121.79]
[1720454687739,7.2219,138.47,138.41,100.0]
[1720454687935,20.0,138.46,138.41,100.0]
[1720454688405,20.0,138.46,138.39,21.79]
[1720454688406,20.0,138.46,138.39,100.0]
[1720454688603,7.2227,138.46,138.41,100.0]
[1720454688805,9.02001391,138.48,138.41,121.79]
[1720454689043,7.2219,138.47,138.41,100.0]
[1720454689331,38.7412,138.49,138.41,121.79]
[1720454689628,1.79871391,138.48,138.41,100.0]
[1720454689811,9.02041391,138.48,138.41,100.0]
[1720454690005,1.79871391,138.48,138.41,100.0]
[1720454690231,20.0,138.48,138.43,100.0]
[1720454690607,27.2214,138.48,138.41,121.79]
[1720454690815,20.0,138.48,138.43,100.0]
[1720454691317,20.0,138.48,138.41,121.79]
[1720454691520,7.2223,138.46,138.41,100.0]
[1720454691703,21.79871391,138.48,138.41,100.0]
[1720454691704,20.0,138.45,138.41,100.0]
[1720454692134,20.0,138.45,138.41,121.79]
[1720454692313,20.0,138.46,138.41,100.0]
[1720454693034,20.0,138.47,138.41,121.79]
[1720454693232,20.0,138.47,138.43,100.0]
[1720454693610,27.2219,138.47,138.41,100.0]
[1720454693835,7.2228,138.45,138.39,100.0]
[1720454694150,27.2233,138.44,138.39,100.0]
[1720454694518,20.0,138.44,138.39,100.0]
[1720454694713,1.79871391,138.46,138.39,100.0]
[1720454694939,7.2248,138.42,138.37,115.3678]
[1720454695238,20.0,138.41,138.37,115.3678]
[1720454695623,9.02451391,138.4,138.36,6.3884]
[1720454695827,20.0,138.39,138.33,143.931]
[1720454696133,21.79871391,138.39,138.33,122.141]
[1720454696316,20.0,138.39,138.33,22.141]
[1720454696513,1.79871391,138.38,138.33,22.141]
[1720454696722,1.79871391,138.38,138.3,100.0]
[1720454696933,7.228,138.35,138.29,22.141]
[1720454697134,20.0,138.34,138.29,22.141]
[1720454697334,2.13871391,138.33,138.26,100.0]
[1720454697541,1.79871391,138.32,138.26,100.0]
[1720454697847,20.0,138.32,138.26,100.0]
[1720454698342,21.79871391,138.32,138.26,100.0]
[1720454698744,29.02831391,138.32,138.24,106.6179]
[1720454699129,29.02831391,138.32,138.24,128.4079]
[1720454699652,7.2308,138.3,138.24,6.6179]
[1720454699938,20.0,138.29,138.24,6.6179]
[1720454700716,21.79871391,138.29,138.23,16.4056]
[1720454700913,68.0057,138.33,138.23,16.4056]
[1720454700914,1.79871391,138.28,138.23,16.4056]
[1720454701141,7.2312,138.29,138.23,116.4056]
[1720454701326,20.0,138.28,138.23,116.4056]
[1720454701516,1.96871391,138.3,138.23,116.4056]
[1720454701713,9.19941391,138.3,138.23,116.4056]
[1720454701926,0.17,138.28,138.2,6.352]
[1720454702124,9.20071391,138.28,138.2,28.142]
[1720454702342,20.17,138.27,138.2,6.352]
[1720454702657,9.03141391,138.26,138.2,6.352]
[1720454702825,20.0,138.25,138.2,6.352]
[1720454703159,20.0,138.25,138.21,100.0]
[1720454703518,29.03141391,138.26,138.2,6.352]
[1720454703743,29.03141391,138.26,138.18,100.0]
[1720454703744,21.79871391,138.26,138.18,100.0]
[1720454703952,7.4034,138.25,138.18,100.0]
[1720454704114,21.79871391,138.24,138.18,100.0]
[1720454704323,20.0,138.24,138.18,100.0]
[1720454704537,21.79871391,138.24,138.18,100.0]
[1720454705627,20.0,138.24,138.18,100.0]
[1720454706046,20.0,138.24,138.2,100.0]
[1720454706242,20.0,138.24,138.18,100.0]
[1720454706445,21.79871391,138.24,138.18,100.0]
[1720454706647,7.53240391,138.25,138.18,100.0]
[1720454706832,20.0,138.23,138.18,100.0]
[1720454707032,20.0,138.23,138.2,100.0]
[1720454707242,2.17078585,138.29,138.22,100.0]
[1720454707438,0.37207194,138.31,138.22,100.0]
[1720454707439,9.40128585,138.31,138.22,100.0]
[1720454707743,16.55860339,138.3,138.24,15.5368]
[1720454707953,29.74338573,138.34,138.2,100.0]
[1720454707954,1.79871391,138.29,138.2,100.0]
[1720454708133,7.2344,138.23,138.19,21.6614]
[1720454708339,7.2344,138.23,138.19,15.5368]
[1720454708548,9.03371391,138.22,138.16,100.0]
[1720454708722,7.235,138.22,138.16,100.0]
[1720454708929,7.235,138.22,138.15,21.6614]
[1720454709150,21.79871391,138.21,138.15,21.6614]
[1720454709459,7.52888569,138.29,138.24,100.0]
[1720454709967,14.75234115,138.33,138.24,121.79]
[1720454710200,1.79871391,138.32,138.23,22.5971]
[1720454710371,7.2307,138.3,138.24,100.0]
[1720454710694,1.79871391,138.32,138.26,100.0]
[1720454710695,9.02831391,138.32,138.26,100.0]
[1720454710860,9.02831391,138.32,138.24,121.79]
[1720454710861,9.02841391,138.32,138.24,121.79]
[1720454711056,1.79871391,138.34,138.26,100.0]
[1720454711304,2.6598,138.35,138.29,100.0]
[1720454711458,14.75039539,138.35,138.27,121.79]
[1720454711660,7.52219539,138.35,138.27,129.0221]
[1720454711858,9.3209093,138.35,138.29,100.0]
[1720454712087,7.52219539,138.35,138.29,100.0]
[1720454712261,7.52219539,138.35,138.26,121.79]
[1720454712690,20.0,138.34,138.28,100.0]
[1720454712986,7.52219539,138.35,138.3,100.0]
[1720454713368,1.79871391,138.37,138.3,100.0]
[1720454713586,1.79871391,138.4,138.32,100.0]
[1720454713765,14.75190278,138.38,138.32,100.0]
[1720454713966,1.79871391,138.39,138.32,100.0]
[1720454714166,1.79871391,138.39,138.25,0.17]
[1720454714167,1.79871391,138.44,138.35,107.2279]
[1720454714370,1.79871391,138.44,138.37,100.0]
[1720454714371,7.52734372,138.42,138.37,100.0]
[1720454714577,7.2229,138.45,138.37,100.0]
[1720454714858,9.02161391,138.45,138.37,121.79]
[1720454715070,9.02161391,138.45,138.39,100.0]
[1720454715385,38.7421,138.47,138.39,100.0]
[1720454715692,1.79871391,138.51,138.4,21.3181]
[1720454716366,7.2228,138.45,138.4,21.3181]
[1720454716681,1.79871391,138.49,138.41,100.0]
[1720454717005,6.77705978,138.51,138.41,100.0]
[1720454717006,1.79871391,138.48,138.41,100.0]
[1720454717160,7.2238,138.44,138.4,15.0763]
[1720454717358,7.2238,138.44,138.37,100.0]
[1720454717359,7.2234,138.44,138.37,100.0]
[1720454717563,33.31871391,138.48,138.39,100.0]
[1720454717789,40.54041391,138.48,138.39,100.0]
[1720454717994,7.2223,138.46,138.39,100.0]
[1720454718182,20.0,138.45,138.39,100.0]
[1720454718392,1.79871391,138.47,138.41,100.0]
[1720454718598,7.2208,138.49,138.41,100.0]
[1720454718767,1.79871391,138.48,138.41,100.0]
[1720454718967,1.79871391,138.48,138.37,100.0]
[1720454719188,7.2249,138.41,138.35,121.3181]
[1720454719368,7.2249,138.41,138.35,21.3181]
[1720454719570,7.2249,138.41,138.36,100.0]
[1720454719775,1.79871391,138.46,138.36,100.0]
[1720454719967,7.224,138.43,138.36,100.0]
[1720454720300,20.17,138.42,138.36,100.0]
[1720454720681,27.3945,138.42,138.36,100.0]
[1720454721101,20.0,138.42,138.38,100.0]
[1720454721418,7.2229,138.45,138.38,121.79]
[1720454721779,9.02111391,138.46,138.38,121.79]
[1720454722493,1.79871391,138.48,138.4,121.79]
[1720454722797,7.2217,138.48,138.4,121.79]
[1720454723002,40.95685978,138.51,138.4,100.0]
[1720454723003,1.79871391,138.47,138.4,100.0]
[1720454723170,9.02111391,138.46,138.4,100.0]
[1720454723369,1.79871391,138.5,138.4,100.0]
[1720454723581,7.2216,138.48,138.4,121.79]
[1720454723777,7.2216,138.48,138.42,100.0]
[1720454723978,20.0,138.47,138.42,100.0]
[1720454724406,29.02041391,138.47,138.42,100.0]
[1720454724575,7.2224,138.46,138.39,100.0]
[1720454724775,20.0,138.45,138.39,100.0]
[1720454724975,20.0,138.45,138.41,100.0]
[1720454725395,27.2218,138.47,138.41,100.0]
[1720454725910,1.79871391,138.5,138.41,100.0]
[1720454726079,0.17,138.49,138.41,100.0]
[1720454726285,1.79871391,138.49,138.41,121.79]
[1720454726482,1.79871391,138.48,138.41,121.79]
[1720454726779,9.02031391,138.48,138.41,121.79]
[1720454727190,27.2218,138.47,138.41,100.0]
[1720454727509,1.79871391,138.48,138.41,100.0]
[1720454727510,7.2213,138.48,138.41,100.0]
[1720454727695,0.34,138.47,138.37,100.0]
[1720454728000,7.2235,138.44,138.37,100.0]
[1720454728308,7.2235,138.44,138.39,100.0]
[1720454728612,0.34,138.47,138.39,100.0]
[1720454728936,7.2228,138.45,138.39,100.0]
[1720454729076,0.34,138.47,138.39,100.0]
[1720454729283,7.2226,138.46,138.39,100.0]
[1720454729483,7.2226,138.46,138.41,100.0]
[1720454729484,20.0,138.45,138.41,100.0]
[1720454729680,1.96871391,138.47,138.41,100.0]
[1720454729681,9.02061391,138.47,138.41,100.0]
[1720454729894,7.2219,138.47,138.41,100.0]
[1720454731312,20.0,138.46,138.41,100.0]
[1720454731809,20.0,138.46,138.43,100.0]
[1720454731979,9.01951391,138.49,138.43,100.0]
[1720454732381,7.2212,138.48,138.43,100.0]
[1720454732882,7.2218,138.47,138.41,100.0]
[1720454733319,20.0,138.46,138.43,100.0]
[1720454733490,7.2219,138.47,138.41,121.79]
[1720454733693,27.2228,138.46,138.39,121.79]
[1720454734017,27.2228,138.46,138.37,100.0]
[1720454734018,0.17,138.44,138.37,100.0]
[1720454734222,18.0625,138.41,138.33,100.0]
[1720454734384,21.79871391,138.4,138.33,100.0]
[1720454734583,7.226,138.39,138.35,15.0763]
[1720454734788,27.2265,138.38,138.35,15.0763]
[1720454735087,27.2265,138.38,138.32,28.302]
[1720454735410,20.0,138.38,138.34,100.0]
[1720454735916,20.0,138.39,138.34,100.0]
[1720454736219,20.7178,138.45,138.34,100.0]
[1720454736220,1.79871391,138.44,138.39,100.0]
[1720454736441,7.2237,138.44,138.39,100.0]
[1720454736621,7.224,138.43,138.37,100.0]
[1720454737213,1.79871391,138.45,138.39,16.0051]
[1720454737419,7.55712023,138.46,138.42,100.0]
[1720454737706,9.02111391,138.46,138.4,106.1797]
[1720454737884,1.79871391,138.45,138.39,16.0051]
[1720454738091,7.2242,138.43,138.39,16.0051]
[1720454738300,7.2234,138.44,138.39,16.0051]
[1720454738686,20.0,138.43,138.39,16.0051]
[1720454738885,7.2247,138.42,138.36,106.0875]
[1720454739200,20.0,138.41,138.38,100.0]
[1720454739699,1.79871391,138.45,138.36,106.0875]
[1720454739902,7.2245,138.42,138.36,106.0875]
[1720454740234,20.0,138.41,138.36,106.0875]
[1720454740431,20.0,138.41,138.38,100.0]
[1720454740600,20.0,138.43,138.38,100.0]
[1720454741126,27.2239,138.43,138.36,127.8775]
[1720454741331,1.79871391,138.42,138.36,6.0875]
[1720454741504,7.2266,138.38,138.32,106.1786]
[1720454741830,20.0,138.37,138.32,6.1786]
[1720454741996,27.2273,138.37,138.32,6.1786]
[1720454742198,7.2275,138.36,138.32,6.1786]
[1720454742409,20.0,138.35,138.32,106.1786]
[1720454742612,20.0,138.37,138.32,106.1786]
[1720454742826,20.0,138.37,138.32,100.0]
[1720454743024,27.227,138.37,138.31,16.3685]
[1720454743531,7.2276,138.36,138.31,16.3685]
[1720454743710,20.0,138.35,138.3,6.1078]
[1720454743904,7.2289,138.34,138.3,6.1078]
[1720454744103,21.79871391,138.35,138.28,16.0511]
[1720454744104,21.79871391,138.33,138.28,16.0511]
[1720454744323,20.0,138.32,138.28,116.0511]
[1720454744504,9.02751391,138.34,138.28,116.0511]
[1720454744827,9.02751391,138.34,138.28,16.0511]
[1720454744828,27.2291,138.33,138.28,16.0511]
[1720454745028,9.02831391,138.32,138.26,106.3513]
[1720454745214,20.0,138.31,138.28,100.0]
[1720454745413,20.0,138.31,138.28,121.79]
[1720454745599,20.0,138.31,138.3,100.0]
[1720454746004,7.2271,138.37,138.3,100.0]
[1720454746232,7.2265,138.38,138.32,100.0]
[1720454746510,9.02471391,138.39,138.32,100.0]
[1720454746715,7.2265,138.38,138.32,100.0]
[1720454746914,31.52,138.4,138.34,100.0]
[1720454747107,1.79871391,138.4,138.34,100.0]
[1720454747518,9.02441391,138.4,138.34,100.0]
[1720454747723,7.2259,138.39,138.34,100.0]
[1720454748134,2.88962299,138.41,138.34,100.0]
[1720454748339,10.11482299,138.41,138.34,100.0]
[1720454748532,7.2255,138.4,138.34,100.0]
[1720454748924,7.2266,138.38,138.32,136.9082]
[1720454749114,1.79871391,138.42,138.32,136.9082]
[1720454749442,7.2253,138.41,138.34,100.0]
[1720454749616,20.0,138.4,138.34,100.0]
[1720454750418,20.0,138.4,138.34,106.4977]
[1720454750918,45.85372161,138.44,138.36,100.0]
[1720454751131,7.2244,138.42,138.36,100.0]
[1720454751524,1.79871391,138.43,138.36,121.79]